Cogmind - Beta 14 @@@ ROGUE MODE // 2024.11.10 @ 19:37:52 Player: Kate+Gabe4evr Result: Destroyed by Y-45 Defender with Heavy Assault Rifle Performance ------------- Evolutions (0) 0 Regions Visited (4) 800 Robots Destroyed (16) 80 Value Destroyed (489) 489 Prototype IDs (0) 0 Alien Tech Used (0) 0 Bonus (0) 0 TOTAL SCORE: 1369 Bonus ------- None Cogmind --------- Core Integrity 0/250 Matter 300/300 Energy 250/250 System Corruption 0% Temperature Cool (9) Movement Rolling (115) Ox1 Location -9/Recycling Parts ------- > --- POWER (1) -------- Ion Engine > --- PROPULSION (2) --- Aluminum Leg Compact Wheel > --- UTILITY (2) ------ Small Storage Unit Visual Processing Unit > --- WEAPON (2) ------- Subdweller Laser Heavy Battle Rifle > --- INVENTORY (8) ---- Subdweller Power Source Subdweller Monowheel Subdweller Monowheel Subdweller Monowheel High-capacity Storage Unit Subdweller Beam Cannon Subdweller Shrapnel Launcher Dirty Datajack (20) Peak State ------------ > --- POWER ------------ Light Nuclear Core > --- PROPULSION ------- Subdweller Monowheel Subdweller Monowheel > --- UTILITY ---------- Small Storage Unit Visual Processing Unit > --- WEAPON ----------- Subdweller Laser Subdweller Machine Gun > --- INVENTORY -------- Light Ion Engine Aluminum Leg Aluminum Leg Aluminum Leg Aluminum Leg High-capacity Storage Unit Terrain Scanner Dirty Datajack [Rating: 15] Favorites ----------- Power Ion Engine Engine Ion Engine Power Core Light Nuclear Core Propulsion Aluminum Leg Leg Aluminum Leg Wheel Subdweller Monowheel Utility Small Storage Unit Storage Small Storage Unit Processor Visual Processing Unit Weapon Subdweller Machine Gun Energy Gun Medium Laser Energy Cannon Subdweller Beam Cannon Ballistic Gun Subdweller Machine Gun Build | -11 -10 -10 -10 -9 ------- Run | Yrd Mat Min Sub Rec Slots Evolved . | . . . . . Power . | . . . . . Propulsion . | . . . . . Utility . | . . . . . Weapon . | . . . . . Parts Attached 30 | 6 2 3 18 1 Power 5 | 1 . 1 3 . Engine 4 | 1 . . 3 . Core 1 | . . 1 . . Reactor . | . . . . . Propulsion 13 | 2 1 2 7 1 Treads . | . . . . . Leg 7 | 2 1 2 2 . Wheel 6 | . . . 5 1 Hover . | . . . . . Flight . | . . . . . Utility 2 | 1 1 . . . Device . | . . . . . Storage 1 | 1 . . . . Processor 1 | . 1 . . . Hackware . | . . . . . Protection . | . . . . . Artifact . | . . . . . Weapon 10 | 2 . . 8 . Energy Gun 5 | 1 . . 4 . Energy Cannon 1 | . . . 1 . Ballistic Gun 4 | 1 . . 3 . Ballistic Cannon . | . . . . . Launcher . | . . . . . Special Weapon . | . . . . . Impact Weapon . | . . . . . Slashing Weapon . | . . . . . Piercing Weapon . | . . . . . Special Melee Weapon . | . . . . . Unidentified Prototypes . | . . . . . Parts Lost 7 | . . . 6 1 Power 2 | . . . 2 . Propulsion 2 | . . . 1 1 Utility . | . . . . . Weapon 3 | . . . 3 . Highest Loss Streak 2 | . . . 2 1 To Critical Strikes 1 | . . . 1 . Average Slot Usage (%) 98 | . 92 100 98 98 Engine 9 | . 14 2 10 14 Core 3 | . . 11 2 . Leg 19 | . 28 28 17 18 Wheel 7 | . . . 10 8 Storage 14 | . 14 14 14 14 Processor 13 | . 6 14 14 14 Energy Gun 7 | . 14 14 4 14 Energy Cannon 2 | . . . 4 . Ballistic Gun 17 | . 14 14 18 14 Peak Build Rating 15 | 6 8 10 15 13 Average Rating 11 | 4 7 9 12 12 On Entrance 7 | . 6 8 10 13 Naked Turns . | . . . . . Heaviest Build 22 | 12 12 14 22 18 Greatest Support 40 | 20 20 20 40 20 Greatest Overweight (x) 1 | . . . 1 1 Average Overweight (x) . | . . . . . Largest Inventory Capacity 8 | 8 8 8 8 8 Average Capacity 7 | 6 8 8 8 8 Most Carried 8 | 2 5 8 8 8 Average Carried 7 | 1 3 7 7 8 Final Capacity 8 | 8 8 8 8 8 Final Carried 8 | 2 5 8 8 8 Class Distribution -------------------- 57% | Mutant 42% | Scavenger-Mutant Dominant Class ---------------- Mutant | -10/Materials Mutant | -10/Mines Scavenger-Mutant | -10/Subcaves Scavenger-Mutant | -9/Recycling Resources | -11 -10 -10 -10 -9 ----------- Run | Yrd Mat Min Sub Rec Matter Collected 705 | 252 46 57 308 42 Remotely . | . . . . . Salvage Created 605 | . 58 88 278 181 Parts 32 | . 3 7 14 8 Haulers Intercepted . | . . . . . Recyclers Shooed 3 | . . . . 3 Parts Field Recycled . | . . . . . Retrieved Matter . | . . . . . Parts Self-Destructed 10 | . . . 10 . Prevented . | . . . . . Kills | -11 -10 -10 -10 -9 ------- Run | Yrd Mat Min Sub Rec Combat Hostiles Destroyed 13 | . 1 2 9 1 Guns 13 | . 1 2 9 1 Classes Destroyed 6 | . 2 . 2 2 Recycler 2 | . . . . 2 Watcher 1 | . 1 . . . Swarmer 2 | . . . 2 . Grunt 5 | . 1 2 2 . Sentry 1 | . . . . 1 Subdweller 5 | . . . 5 . Best Kill Streak 2 | . 2 2 2 1 Combat Bots Only 2 | . 1 2 2 1 Max Kills in Single Turn 1 | . 1 1 1 1 Gunslinging . | . . . . . Exploded . | . . . . . Melee . | . . . . . Uniques/NPCs Destroyed . | . . . . . Combat | -11 -10 -10 -10 -9 -------- Run | Yrd Mat Min Sub Rec Hostile Shots Fired 163 | . 8 17 132 6 Missed 56 | . 1 5 48 2 Damage Taken 1347 | . 82 154 1053 58 Core 252 | . 14 47 177 14 Absorbed by Shields . | . . . . . Core Remaining (%) 100 | 100 . . . . Volleys Fired 89 | . 6 9 65 9 Largest 2 | . 2 2 2 2 Hottest 110 | . 70 70 110 93 Shots Fired 160 | . 12 18 118 12 Gun 160 | . 12 18 118 12 Cannon . | . . . . . Launcher . | . . . . . Special . | . . . . . Kinetic 99 | . 6 9 75 9 Thermal 61 | . 6 9 43 3 Explosive . | . . . . . Electromagnetic . | . . . . . Robot Hit Streak 15 | . 5 6 15 3 Robot Miss Streak 3 | . 1 2 3 3 Penetration Max . | . . . . . Secondary Targets . | . . . . . Shots Hit Robots 83 | . 8 12 56 7 Core Hits 30 | . 3 5 18 4 Critical Kills . | . . . . . Critical Parts Destroyed . | . . . . . Critical Strikes 2 | . 1 . 1 . Burn 2 | . 1 . 1 . Melee Attacks . | . . . . . Impact . | . . . . . Slashing . | . . . . . Piercing . | . . . . . Sneak Attacks . | . . . . . Combat Hostiles . | . . . . . Follow-up Attacks . | . . . . . Damage Inflicted 1409 | . 101 153 992 163 Guns 1409 | . 101 153 992 163 Cannons . | . . . . . Explosions . | . . . . . Melee . | . . . . . Ramming . | . . . . . Kinetic 778 | . 41 102 495 140 Thermal 631 | . 60 51 497 23 Explosive . | . . . . . Electromagnetic . | . . . . . Impact . | . . . . . Slashing . | . . . . . Piercing . | . . . . . Highest Corruption . | . . . . . Average Corruption . | . . . . . Corruption Purged . | . . . . . Corruption Blocked . | . . . . . Overload Shots . | . . . . . Overflow Damage . | . . . . . Projectiles . | . . . . . Explosions . | . . . . . Melee . | . . . . . Knockbacks . | . . . . . Impact . | . . . . . Kinetic . | . . . . . Secondary . | . . . . . Self-Inflicted Damage . | . . . . . Shots . | . . . . . Rammed . | . . . . . Targets Rammed . | . . . . . Kicked . | . . . . . Crushed . | . . . . . Highest Temperature 168 | . 66 168 . 126 Average Temperature 61 | . 28 91 . 46 Received Heat Transfer 504 | . 45 87 327 45 Siege Activations . | . . . . . Robots Corrupted . | . . . . . Combat Hostiles . | . . . . . Parts Fried . | . . . . . Impact Corruptions . | . . . . . Robots Melted . | . . . . . Combat Hostiles . | . . . . . Parts Melted 3 | . 1 . 2 . Heat Transferred 1326 | . 259 148 894 25 Parts Sabotaged . | . . . . . Parts Stolen . | . . . . . Parts Stripped . | . . . . . Power Chain Reactions . | . . . . . Alert | -11 -10 -10 -10 -9 ------- Run | Yrd Mat Min Sub Rec Peak Influence 75 | . 67 75 . 41 Initial 25 | . . 25 . 21 Average 46 | . 37 71 . 32 Maximum Alert Level . | . . . . . Low Security (%) 100 | 100 100 100 . 100 Level 1 . | . . . . . Level 2 . | . . . . . Level 3 . | . . . . . Level 4 . | . . . . . Level 5 . | . . . . . High Security . | . . . . . Max Security . | . . . . . Squads Dispatched 1 | . 1 . . . Investigation . | . . . . . Extermination . | . . . . . Reinforcement 1 | . 1 . . . Assault . | . . . . . Garrison . | . . . . . Intercept . | . . . . . Searches Triggered . | . . . . . Construction Impeded . | . . . . . Haulers Reinforced . | . . . . . Active Scanning Responses . | . . . . . Cargo Convoy Interrupts . | . . . . . Stealth | -11 -10 -10 -10 -9 --------- Run | Yrd Mat Min Sub Rec Distress Signals . | . . . . . Communications Jammed . | . . . . . Distress Signals . | . . . . . Times Spotted 30 | . 3 2 22 3 Peak Tracking Total 6 | . 3 2 6 1 Tactical Retreats 3 | . . . 3 . Traps | -11 -10 -10 -10 -9 ------- Run | Yrd Mat Min Sub Rec Traps Triggered . | . . . . . Indirectly . | . . . . . Trap Hack Attempts . | . . . . . Triggered . | . . . . . Disarmed . | . . . . . Reprogrammed . | . . . . . Reused . | . . . . . Traps Extracted . | . . . . . Installed . | . . . . . Triggered . | . . . . . Machines | -11 -10 -10 -10 -9 ---------- Run | Yrd Mat Min Sub Rec Machines Disabled . | . . . . . Max in Single Turn . | . . . . . Machines Repaired . | . . . . . Machines Dismantled . | . . . . . Machines Sabotaged . | . . . . . Overloaded Fab Kills . | . . . . . Hacking | -11 -10 -10 -10 -9 --------- Run | Yrd Mat Min Sub Rec Machines Accessed . | . . . . . Terminals . | . . . . . Fabricators . | . . . . . Repair Stations . | . . . . . Recycling Units . | . . . . . Scanalyzers . | . . . . . Garrison Access . | . . . . . Total Hacks . | . . . . . Successful . | . . . . . Failed . | . . . . . Catastrophic . | . . . . . Database Lockouts . | . . . . . Manual . | . . . . . Terminals . | . . . . . Fabricators . | . . . . . Repair Stations . | . . . . . Recycling Units . | . . . . . Scanalyzers . | . . . . . Garrison Access . | . . . . . Terminal Hacks . | . . . . . Fabricator Hacks . | . . . . . Repair Station Hacks . | . . . . . Recycling Unit Hacks . | . . . . . Scanalyzer . | . . . . . Garrison Access Hacks . | . . . . . Unauthorized Hacks . | . . . . . Terminals . | . . . . . Fabricators . | . . . . . Repair Stations . | . . . . . Recycling Units . | . . . . . Scanalyzers . | . . . . . Garrison Access . | . . . . . Data Cores Recovered . | . . . . . Used . | . . . . . Hacking Detections . | . . . . . Full Trace Events . | . . . . . Feedback Events . | . . . . . Feedback Blocked . | . . . . . Robot Schematics Acquired . | . . . . . Robots Built . | . . . . . Authchips . | . . . . . Time . | . . . . . Total Robot Build Rating . | . . . . . Part Schematics Acquired . | . . . . . Parts Built . | . . . . . Authchips . | . . . . . Time . | . . . . . Total Part Build Rating . | . . . . . Parts Repaired . | . . . . . Time . | . . . . . Parts Recycled . | . . . . . Recycled Matter . | . . . . . Retrieved Matter . | . . . . . Retrieved Components . | . . . . . Parts Scanalyzed . | . . . . . Part Schematics Acquired . | . . . . . Parts Damaged . | . . . . . Bothacking | -11 -10 -10 -10 -9 ------------ Run | Yrd Mat Min Sub Rec Used RIF Installer . | . . . . . Robots Hacked . | . . . . . Non-combat . | . . . . . Combat . | . . . . . Robot Hacks Applied . | . . . . . Relay Couplers Released . | . . . . . Fabnet Peak Effective % . | . . . . . Robots Rewired . | . . . . . Allies Hacked . | . . . . . Hacks Repelled . | . . . . . Allies | -11 -10 -10 -10 -9 -------- Run | Yrd Mat Min Sub Rec Total Allies . | . . . . . Largest Group . | . . . . . Highest-Rated Group . | . . . . . Highest-Rated Ally . | . . . . . Total Orders . | . . . . . Ally Attacks . | . . . . . Total Damage . | . . . . . Kills . | . . . . . Allies Corrupted . | . . . . . Allies Melted . | . . . . . Intel | -11 -10 -10 -10 -9 ------- Run | Yrd Mat Min Sub Rec Robot Analysis Total . | . . . . . Derelict Logs Recovered 1 | . . . 1 . Drone Launches . | . . . . . Drone Recoveries . | . . . . . Exploration | -11 -10 -10 -10 -9 ------------- Run | Yrd Mat Min Sub Rec Turns Passed 2727 | 53 174 379 1774 347 Spaces Moved 1554 | 37 120 37 1091 269 Core 3 | 3 . . . . Treads . | . . . . . Legs 955 | 34 120 37 676 88 Wheels 596 | . . . 415 181 Hover . | . . . . . Flight . | . . . . . Fastest Speed 50 | 50 120 120 110 115 Average Speed 130 | 114 120 120 135 118 Slowest Speed 190 | 120 120 120 190 190 Overloaded Moves . | . . . . . Propulsion Burnouts . | . . . . . Robots Hopped . | . . . . . Cave-ins Triggered . | . . . . . Exploration Rate (%) 32 | 4 28 9 49 73 Regions Visited 4 Branch Regions 3 Pre-discovered Areas . | . . . . . Known Exits Taken . | . . . . . Unknown Exits Taken 4 | 1 1 1 1 . Scrap Searched 2 | . . . 2 . Spaces Dug . | . . . . . Terrain Destroyed . | . . . . . Melee . | . . . . . Projectile . | . . . . . AOE . | . . . . . Terrain Rammed . | . . . . . Walls Destroyed . | . . . . . Machines Disabled . | . . . . . Actions | -11 -10 -10 -10 -9 --------- Run | Yrd Mat Min Sub Rec Total 2092 | 44 137 353 1274 284 Wait 391 | . 8 303 75 5 Move 1550 | 36 119 36 1090 269 Hop . | . . . . . Pick Up 16 | 2 2 1 11 . Fast Attach 13 | 6 1 . 5 1 Attach 5 | . . . 5 . Detach 1 | . . . 1 . Swap 12 | . 1 3 8 . Drop 15 | . . 1 14 . Fire 89 | . 6 9 65 9 Melee . | . . . . . Ram . | . . . . . Kick . | . . . . . Crush . | . . . . . Escape Stasis . | . . . . . Rewire . | . . . . . Trap . | . . . . . Miscellaneous . | . . . . . Route ------- -11/Scrapyard -10/Materials (discovered 2 exits: [*Min x2]) -10/Mines -10/Subcaves -9/Recycling (discovered 1 exit: [*Fac]) History --------- Turn | Location | Event 6 | -11/Scrapyard | Discovered new exit (range 14) 54 | -11/Scrapyard | Entered Materials 54 | -10/Materials | Discovered new exit (range 8) 157 | -10/Materials | Discovered new exit (range 18) 228 | -10/Materials | Entered Mines 305 | -10/Mines | Build established: Mutant 593 | -10/Mines | Discovered new exit (range 5) 607 | -10/Mines | Entered Subcaves 616 | -10/Subcaves | A swath of the cavern ceiling suddenly collapsed 654 | -10/Subcaves | Discovered new exit (range 17) 1019 | -10/Subcaves | A swath of the cavern ceiling suddenly collapsed 1113 | -10/Subcaves | Ambushed by angry Subdweller bent on revenge 1115 | -10/Subcaves | Core integrity fell below 50% 1304 | -10/Subcaves | Build established: Scavenger-Mutant 1486 | -10/Subcaves | Learned Materials terminal intel 1647 | -10/Subcaves | Shifting Twisted Machinery released Sub. Monowheel 1655 | -10/Subcaves | Shifting Twisted Machinery released Sub. Monowheel 1789 | -10/Subcaves | Disturbed a concealed Subdweller 2086 | -10/Subcaves | Build established: Mutant 2352 | -10/Subcaves | Core integrity fell below 20% 2381 | -10/Subcaves | Entered Recycling 2569 | -9/Recycling | Discovered new exit (range 17) 2728 | -9/Recycling | Destroyed by Y-45 Defender with Heavy Assault Rifle Last Messages --------------- GOAL=ESCAPE 02478_ Y-45 Defender springs to life. 02481_ Aluminum Leg destroyed. 02481_ Critical hit (Burn: +37). 02482_ Y-45 Defender destroyed. 02494_ R-06 Scavenger collects Lgt. Armor Plating. 02497_ Sub. Laser shoots sparks and powers down. 02503_ R-06 Scavenger collects Heat Sink. 02505_ R-06 Scavenger collects Imp. Ion Engine. 02506_ R-06 Scavenger destroyed. 02507_ R-06 Scavenger collects Hvy. Assault Rifle. 02508_ Acquired 29 matter. 02508_ R-06 Scavenger collects Tractor Beam. 02511_ R-06 Scavenger collects Heat Sink. 02512_ Acquired Com. Wheel. 02569_ EXIT=FOUND 02638_ R-06 Scavenger destroyed. 02640_ Acquired 13 matter. 02661_ R-06 Scavenger collects Com. Wheel. 02728_ Y-45 Defender springs to life. Map ----- +----------------------------------------------------+ | ?????????????????????????????????????????? | | ?????????????????????????????????????????? | | ?????????????????????????????????????????? | | ??????????###############????????????????? | | ??????????# [ #????????##??????? | | ??????????# =* ]! [ #?####### ###????? | | ??????????# [ ! % #?# #????? | | ??????????# =! [ = #?# #????? | | ?????????????####+####+#### #????? | | ????????????????# #### + #????? | | ????????????????# ##"" # #????? | | ????????????????# ##"Y # #????? | | ??????#########?# ##"" # #????? | | ??????# ] ?# #### ### #????? | | ??????# % # #### % ###########????? | | ??????# [ # %#??????????????? | | ??????# % r %#??????????????? | | ??????#![ % # ###??????????????? | | ??????# ! # #????????????????? | | ??????# % ?# #????????????????? | | ??????# ?# #????????????????? | | ??????########??# #????????????????? | | ????????????????# #????????????????? | | ????????????????# ###??????????????? | | ????????????????# ""#??????????????? | | ??????????????###@ Y"#??????????????? | | ??????????????#"" ""#??????????????? | | ??????????????#"Y ###??????????????? | | ??????????????#"" r#????????????????? | | ???############## #????????????????? | | ???# ??# #????????????????? | | ???# [ ?# ##???????????????? | | ???# ?# Y#???????????????? | | ???# # ####+##+###??????? | | ???# ! # ????? | | ???# * + ????? | | ???#!% # ????? | | ???# = ### ##Y#######! !#???????? | | ???# !% ! ???#r#?##???????? ????????? | | ???# ! ???#%#????????????????????? | | ???# ! ????# #????????????????????? | | ???# ????#+############?????????? | | ???##########????## #?????????? | | ?????????????????# #?????????? | | ?????????????????## #?????????? | | ??????????????????# #?????????? | | ??????????????????# #?????????? | | ??????????????????# #?????????? | | ??????????????????# #?????????? | | ??????????????????# #?????????? | +----------------------------------------------------+ Best States ------------- Heat Dissipation 25 Energy Generation 15 Energy Capacity 250 Matter Stores 300 Matter Capacity 300 Sight Range 18 Terrain Scan Density 10 Evasion (%) 55 Item Schematics ----------------- None Robot Schematics ------------------ None Fabricated ------------ Nothing Alien Tech Used ----------------- None Achievements -------------- None Challenges ------------ None Game ------ Seed MomentumHellfireAutohacker Manual? 0 Play Time 00:14:02 Cumulative 65.6 hours Start 2024.11.10 @ 19:25:16 End 2024.11.10 @ 19:37:52 Sessions 1 Manual Loads 0 Difficulty Rogue Special Mode None Game No. 126 Rogue 126 Adventurer 0 Explorer 0 Win Type - Total 1 Types 1/0/0/0/0/0/0/0/0 Lore% 51 Gallery% 55 Achievement% 46 Wizard Run 0 Options --------- Layout 0 ASCII 0 Keyboard 1 Movement Numpad Keybinds 0 Fullscreen 2 Font 24/Terminus Map View 76x50 Zoom Use 0% Tactical HUD 1 Map Filters NONE Filters NONE Steam 1 RUN: e5751198-fcf9-400f-9fae-d04198cc2391